bitfinex/quotes_SOLUSD_20251030
["timestamp","ask_amount","ask_price","bid_price","bid_amount"]
[1761798050525,5.75427942,194.31,194.26,5.09427942]
[1761798050848,0.66,194.31,194.27,5.09427942]
[1761798051017,0.66,194.31,194.26,5.09427942]
[1761798051338,0.66,194.4,194.31,0.14216157]
[1761798051514,5.75427942,194.4,194.34,5.09427942]
[1761798051724,0.66,194.43,194.37,5.09427942]
[1761798051926,5.09427942,194.42,194.37,5.09427942]
[1761798052126,5.75427942,194.41,194.36,5.09427942]
[1761798052450,0.66,194.41,194.36,5.09427942]
[1761798052743,0.72,194.4,194.34,5.09427942]
[1761798052933,5.81427942,194.4,194.34,5.09427942]
[1761798053449,0.72,194.43,194.38,5.09427942]
[1761798053629,0.72,194.43,194.39,5.09427942]
[1761798053955,0.72,194.43,194.37,5.09427942]
[1761798053956,5.09427942,194.42,194.37,5.09427942]
[1761798054455,0.72,194.42,194.37,5.09427942]
[1761798054621,0.72,194.45,194.39,5.09427942]
[1761798054821,5.09427942,194.44,194.39,5.09427942]
[1761798055038,9.78882769,194.49,194.42,5.09427942]
[1761798055039,5.09427942,194.48,194.42,5.09427942]
[1761798055247,0.92,194.5,194.43,5.09427942]
[1761798055425,5.09427942,194.48,194.43,5.09427942]
[1761798055827,5.09427942,194.46,194.41,5.09427942]
[1761798056137,5.81427942,194.47,194.39,0.14216157]
[1761798056440,5.81427942,194.47,194.42,5.09427942]
[1761798056658,5.09427942,194.46,194.38,20.592]
[1761798056847,5.09427942,194.45,194.39,5.09427942]
[1761798057050,5.09427942,194.46,194.4,5.09427942]
[1761798057234,5.09427942,194.45,194.39,5.09427942]
[1761798057436,9.93098926,194.47,194.37,0.14216157]
[1761798057740,9.93098926,194.47,194.34,0.5145621]
[1761798057741,5.09427942,194.43,194.34,0.5145621]
[1761798057928,9.93098926,194.47,194.34,5.09427942]
[1761798057929,5.09427942,194.4,194.34,5.09427942]
[1761798058328,5.09427942,194.4,194.31,20.592]
[1761798058558,5.09427942,194.37,194.26,0.51477401]
[1761798058725,5.09427942,194.39,194.28,5.09427942]
[1761798058922,0.72,194.45,194.34,0.14216157]
[1761798059145,5.95644099,194.44,194.39,5.09427942]
[1761798059360,5.95644099,194.44,194.38,5.09427942]
[1761798059566,0.86216157,194.44,194.38,5.09427942]
[1761798059740,5.95644099,194.44,194.38,5.09427942]
[1761798059937,5.09427942,194.41,194.35,5.09427942]
[1761798060140,20.592,194.48,194.39,5.09427942]
[1761798060337,0.72,194.47,194.43,5.09427942]
[1761798060639,0.72,194.47,194.36,21.60650915]
[1761798060640,5.09427942,194.46,194.37,0.51448268]
[1761798060829,5.81427942,194.47,194.41,5.09427942]
[1761798061036,5.81427942,194.47,194.39,5.09427942]
[1761798061037,5.09427942,194.45,194.39,5.09427942]
[1761798061238,0.72,194.46,194.37,0.51448268]
[1761798061438,5.09427942,194.43,194.38,5.09427942]
[1761798061764,0.72,194.46,194.36,5.09427942]
[1761798061765,5.09427942,194.42,194.36,5.09427942]
[1761798061944,5.09427942,194.41,194.31,20.592]
[1761798062133,5.09427942,194.41,194.35,5.09427942]
[1761798062333,0.72,194.44,194.37,5.09427942]
[1761798062540,0.72,194.44,194.39,5.09427942]
[1761798062742,5.09427942,194.47,194.41,5.09427942]
[1761798062944,5.09427942,194.45,194.39,5.09427942]
[1761798063456,0.72,194.44,194.39,5.09427942]
[1761798063757,0.72,194.44,194.37,0.14216157]
[1761798063955,5.09427942,194.42,194.36,5.09427942]
[1761798064140,0.72,194.44,194.37,5.09427942]
[1761798064342,5.09427942,194.42,194.36,5.09427942]
[1761798064555,5.09427942,194.41,194.35,25.68627942]
[1761798064873,0.72,194.42,194.29,6.1615807]
[1761798065080,5.09427942,194.39,194.32,20.592]
[1761798065362,5.09427942,194.39,194.33,5.09427942]
[1761798065537,0.14216157,194.42,194.35,5.09427942]
[1761798065538,5.09427942,194.4,194.35,5.09427942]
[1761798065750,5.09427942,194.39,194.33,5.09427942]
[1761798066069,0.72,194.4,194.34,5.09427942]
[1761798066270,5.81427942,194.4,194.34,5.09427942]
[1761798066694,5.81427942,194.4,194.28,5.09427942]
[1761798066695,5.09427942,194.38,194.32,5.09427942]
[1761798066971,0.72,194.39,194.3,5.09427942]
[1761798067166,0.14216157,194.37,194.3,5.09427942]
[1761798067369,0.14216157,194.37,194.21,12.87228935]
[1761798067370,5.09427942,194.34,194.23,5.1483033]
[1761798067555,5.09427942,194.33,194.28,5.09427942]
[1761798067757,5.09427942,194.31,194.25,5.09427942]
[1761798067953,0.14216157,194.33,194.24,5.09427942]
[1761798067954,5.09427942,194.3,194.24,5.09427942]
[1761798068164,0.72,194.32,194.25,5.09427942]
[1761798068359,5.09427942,194.29,194.23,5.09427942]
[1761798068559,5.09427942,194.29,194.24,5.09427942]
[1761798068747,0.72,194.28,194.24,5.09427942]
[1761798068945,0.72,194.28,194.23,5.09427942]
[1761798069346,0.72,194.28,194.19,0.51495957]
[1761798069548,5.81427942,194.28,194.19,0.51495957]
[1761798069753,5.09427942,194.27,194.21,5.09427942]
[1761798069989,5.09427942,194.27,194.22,5.09427942]
[1761798070164,0.72,194.27,194.22,5.09427942]
[1761798070475,0.72,194.26,194.22,5.09427942]
[1761798070659,0.72,194.26,194.16,0.51503914]
[1761798070660,5.81427942,194.26,194.16,0.51503914]
[1761798070985,5.09427942,194.24,194.18,5.09427942]
[1761798071353,5.81427942,194.24,194.18,5.09427942]
[1761798071574,0.72,194.24,194.19,5.09427942]
[1761798071966,5.23644099,194.25,194.12,5.1514527]
[1761798071967,5.81427942,194.23,194.12,5.1514527]
[1761798072276,5.81427942,194.23,194.17,5.09427942]
[1761798073054,9.78882769,194.28,194.2,5.09427942]
[1761798073257,5.09427942,194.25,194.17,0.14216157]
[1761798073580,5.09427942,194.23,194.17,5.09427942]
[1761798073952,5.09427942,194.24,194.15,0.14216157]
[1761798074160,5.09427942,194.24,194.18,5.09427942]
[1761798074355,0.67,194.23,194.18,5.09427942]
[1761798074556,0.67,194.23,194.16,5.15024682]
[1761798074787,0.67,194.23,194.19,5.09427942]
[1761798075361,0.67,194.23,194.19,7.59522933]
[1761798075772,0.14216157,194.2,194.14,0.5150922]
[1761798076083,9.93098926,194.14,194.02,0.65]
[1761798076272,7.59522933,194.11,194.06,7.59522933]
[1761798076478,17.52621859,194.11,194.04,7.59522933]
[1761798076678,18.19621859,194.11,194.02,7.59522933]
[1761798077182,0.67,194.15,194.07,7.59522933]
[1761798077487,20.73416157,194.11,194.02,7.59522933]
[1761798077699,38.11821859,194.11,194.0,0.2]
[1761798077859,38.78821859,194.11,194.0,0.2]
[1761798078257,0.14216157,194.05,194.0,0.2]
[1761798078559,7.59522933,194.01,194.0,0.2]
[1761798079184,0.81216157,194.05,194.0,0.2]
[1761798079496,7.59522933,194.01,194.0,0.2]
[1761798079866,0.67,194.09,194.0,0.85]
[1761798080061,7.59522933,194.05,194.0,0.2]
[1761798080296,7.59522933,194.01,194.0,0.2]
[1761798080496,0.14216157,194.05,194.0,0.2]
[1761798080672,7.59522933,194.01,194.0,0.2]
[1761798081061,8.4073909,194.01,194.0,0.2]
[1761798081467,18.19621859,194.01,194.0,0.2]
[1761798081658,17.52621859,194.01,194.0,0.2]
[1761798081863,17.52621859,194.01,193.71,25.60344659]
[1761798081864,18.19621859,194.01,193.89,21.242]
[1761798082058,7.59522933,193.92,193.89,21.242]
[1761798082477,7.59522933,193.9,193.85,0.67]
[1761798082802,0.81216157,193.96,193.87,20.592]
[1761798083099,7.59522933,193.91,193.87,21.262]
[1761798083321,0.14216157,193.94,193.84,0.51588939]
[1761798083493,0.14216157,193.94,193.79,5.67609702]
[1761798083801,7.59522933,193.85,193.81,20.592]
[1761798084084,7.59522933,193.84,193.81,0.67]
[1761798084263,7.59522933,193.84,193.81,21.262]
[1761798084459,7.59522933,193.85,193.83,20.592]
[1761798084660,7.59522933,193.84,193.78,0.51604912]
[1761798084883,7.59522933,193.83,193.79,0.67]
[1761798085086,7.59522933,193.83,193.8,0.14216157]
[1761798085463,7.59522933,193.83,193.81,0.67]
[1761798085879,7.59522933,193.83,193.81,20.592]
[1761798086086,7.59522933,193.83,193.81,21.262]
[1761798086464,7.59522933,193.83,193.82,20.592]
[1761798086689,7.59522933,193.83,193.78,20.73416157]
[1761798086969,7.59522933,193.83,193.8,20.592]
[1761798087169,0.14216157,193.91,193.81,0.67]
[1761798087491,7.59522933,193.83,193.81,0.67]
[1761798088769,9.78882769,193.99,193.83,0.14216157]
[1761798088991,0.67,193.97,193.85,0.14216157]
[1761798089249,0.67,193.97,193.87,0.14216157]
[1761798089403,7.59522933,193.93,193.87,0.14216157]
[1761798089730,7.59522933,193.92,193.86,7.59522933]
[1761798090237,0.67,193.97,193.88,7.59522933]
[1761798090401,7.59522933,193.95,193.89,7.59522933]
[1761798090606,7.59522933,193.92,193.87,0.67]
[1761798090822,7.59522933,193.88,193.83,0.81216157]
[1761798091102,7.59522933,193.86,193.81,0.67]
[1761798091338,7.59522933,193.86,193.81,8.4073909]
[1761798091503,7.59522933,193.86,193.81,0.81216157]
[1761798091700,7.59522933,193.87,193.82,0.67]
[1761798092238,7.59522933,193.9,193.84,7.59522933]
[1761798092538,7.59522933,193.9,193.84,7.7373909]
[1761798092706,7.59522933,193.91,193.85,8.26522933]
[1761798092931,0.67,193.98,193.89,7.59522933]
[1761798093126,7.59522933,193.98,193.92,7.59522933]
[1761798093321,7.59522933,193.98,193.86,1.18583617]
[1761798093322,7.59522933,193.93,193.86,0.51583617]
[1761798093527,7.59522933,193.89,193.83,8.26522933]
[1761798093762,7.59522933,193.89,193.84,0.67]
[1761798093958,7.59522933,193.87,193.81,8.26522933]
[1761798094147,7.59522933,193.85,193.81,0.67]
[1761798094830,0.81216157,193.9,193.81,0.67]
[1761798095030,7.59522933,193.87,193.81,8.26522933]
[1761798095462,7.59522933,193.86,193.8,7.59522933]
[1761798095649,7.59522933,193.86,193.81,8.26522933]
[1761798095853,7.59522933,193.87,193.81,8.26522933]
[1761798096159,7.59522933,193.86,193.81,8.26522933]
[1761798096534,7.59522933,193.86,193.81,7.59522933]
[1761798096737,0.81216157,193.91,193.79,28.9993909]
[1761798096738,7.59522933,193.85,193.79,28.9993909]
[1761798097133,7.59522933,193.85,193.8,7.59522933]
[1761798097349,7.59522933,193.85,193.8,8.26522933]
[1761798097553,7.59522933,193.85,193.81,0.67]
[1761798097755,7.59522933,193.86,193.81,0.67]
[1761798098268,9.93098926,193.94,193.83,7.59522933]
[1761798098433,9.93098926,193.94,193.78,18.0616572]
[1761798098434,7.59522933,193.84,193.78,0.67]
[1761798098626,0.14216157,193.88,193.78,8.26522933]
[1761798098627,7.59522933,193.83,193.78,8.26522933]
[1761798099038,7.59522933,193.83,193.79,0.67]
[1761798099648,7.59522933,193.88,193.82,7.59522933]
[1761798099848,7.59522933,193.9,193.84,7.59522933]
[1761798100265,7.59522933,193.88,193.82,7.59522933]
[1761798100644,7.59522933,193.88,193.8,0.67]
[1761798100645,7.59522933,193.88,193.83,7.59522933]
[1761798100837,7.59522933,193.88,193.8,0.67]
[1761798101040,7.59522933,193.87,193.81,7.59522933]
[1761798101664,7.59522933,193.87,193.81,8.26522933]
[1761798102137,7.59522933,193.88,193.82,7.59522933]
[1761798102372,7.59522933,193.87,193.81,8.26522933]
[1761798102581,7.59522933,193.86,193.81,8.26522933]
[1761798102866,7.59522933,193.82,193.76,0.67]
[1761798103068,7.59522933,193.81,193.76,0.67]
[1761798103234,7.59522933,193.8,193.76,0.67]
[1761798103659,7.59522933,193.81,193.76,0.67]
[1761798103855,7.59522933,193.8,193.74,7.59522933]
[1761798104065,7.59522933,193.8,193.72,21.10820896]
[1761798104066,0.14216157,193.84,193.75,0.67]
[1761798104442,7.59522933,193.84,193.78,7.59522933]
[1761798104665,0.67,193.88,193.78,7.59522933]
[1761798104666,7.59522933,193.85,193.79,8.26522933]
[1761798105165,7.59522933,193.85,193.79,13.4254344]
[1761798105460,7.59522933,193.84,193.78,7.59522933]
[1761798105670,7.59522933,193.84,193.75,0.6582906]
[1761798105671,7.59522933,193.8,193.75,0.67]
[1761798105875,7.59522933,193.8,193.74,7.59522933]
[1761798106047,0.67,193.8,193.72,0.67]
[1761798106363,7.59522933,193.76,193.71,0.67]
[1761798106568,7.59522933,193.75,193.69,7.59522933]
[1761798106736,7.59522933,193.74,193.68,8.26522933]
[1761798106942,7.59522933,193.73,193.68,0.67]
[1761798107345,7.59522933,193.75,193.69,7.59522933]
[1761798107655,7.59522933,193.71,193.66,6.75152801]
[1761798107990,7.59522933,193.72,193.66,15.01675734]
[1761798108198,7.59522933,193.71,193.66,6.75152801]
[1761798108354,7.59522933,193.7,193.66,6.75152801]
[1761798108556,7.59522933,193.67,193.66,6.75152801]
[1761798108853,17.52621859,193.67,193.66,6.75152801]
[1761798109200,18.19621859,193.67,193.66,6.75152801]
[1761798110152,0.14216157,193.67,193.66,6.75152801]
[1761798110374,0.67,193.67,193.66,6.75152801]
[1761798110578,50.0,193.75,193.66,7.42152801]
[1761798110880,7.59522933,193.74,193.68,7.59522933]
[1761798111263,7.59522933,193.72,193.66,6.75152801]
[1761798111467,7.59522933,193.69,193.66,6.75152801]
[1761798111661,0.14216157,193.72,193.66,6.75152801]
[1761798111662,7.59522933,193.68,193.66,6.75152801]
[1761798111853,7.59522933,193.67,193.66,6.75152801]
[1761798112053,7.7373909,193.67,193.66,6.75152801]
[1761798112284,18.19621859,193.67,193.66,6.75152801]
[1761798112588,68.19621859,193.67,193.66,6.75152801]
[1761798112754,73.3596409,193.67,193.66,6.75152801]
[1761798112957,68.19621859,193.67,193.66,6.75152801]
[1761798113372,60.60098926,193.67,193.66,6.75152801]
[1761798113877,18.19621859,193.67,193.66,6.75152801]
[1761798114278,10.60098926,193.67,193.66,6.75152801]
[1761798114483,18.19621859,193.67,193.66,6.75152801]
[1761798114984,23.3596409,193.67,193.66,6.75152801]
[1761798115194,23.3596409,193.67,193.61,0.1]
[1761798115195,9.78882769,193.63,193.61,0.1]
[1761798115360,17.52621859,193.62,193.61,0.1]
[1761798115567,18.24621859,193.62,193.61,0.1]
[1761798116002,17.52621859,193.62,193.61,0.1]
[1761798116169,7.7373909,193.62,193.61,0.1]
[1761798116569,50.0,193.74,193.61,8.38522933]
[1761798116868,7.59522933,193.64,193.61,0.1]
[1761798117088,17.52621859,193.62,193.61,0.1]
[1761798117476,18.24621859,193.62,193.61,0.1]
[1761798119699,9.93098926,193.62,193.61,0.1]
[1761798119871,0.14216157,193.62,193.61,0.1]
[1761798120080,7.7373909,193.62,193.61,0.1]
[1761798120278,9.78882769,193.68,193.61,0.79]
[1761798120577,7.59522933,193.62,193.61,0.1]
[1761798120908,7.59522933,193.64,193.61,0.1]
[1761798121270,7.59522933,193.63,193.61,0.1]
[1761798121493,7.7373909,193.62,193.61,0.1]
[1761798121808,17.52621859,193.62,193.61,0.1]
[1761798122018,18.24621859,193.62,193.61,0.1]
[1761798122570,68.24621859,193.62,193.61,0.1]
[1761798122783,10.65098926,193.62,193.61,0.1]
[1761798122994,18.24621859,193.62,193.61,0.1]
[1761798123483,31.00620362,193.62,193.61,0.1]
[1761798123676,9.78882769,193.56,193.49,0.69]
[1761798123877,7.59522933,193.5,193.46,0.1]
[1761798124115,7.59522933,193.49,193.46,0.79]
[1761798124405,7.59522933,193.5,193.46,0.79]
[1761798124791,7.59522933,193.47,193.46,0.1]
[1761798124990,7.59522933,193.48,193.46,0.1]
[1761798125299,7.59522933,193.48,193.46,0.79]
[1761798125475,0.14216157,193.51,193.46,0.1]
[1761798125804,0.14216157,193.54,193.46,0.79]
[1761798126098,7.59522933,193.52,193.46,8.38522933]
[1761798126311,0.72,193.63,193.51,7.59522933]
[1761798126483,7.59522933,193.6,193.53,7.59522933]
[1761798126688,7.59522933,193.58,193.52,8.28522933]
[1761798126875,100.72,193.63,193.52,0.69]
[1761798127078,7.59522933,193.55,193.52,0.69]
[1761798127276,7.59522933,193.53,193.48,0.69]
[1761798127621,7.59522933,193.56,193.5,7.59522933]
[1761798127779,7.59522933,193.57,193.51,8.28522933]
[1761798128102,7.59522933,193.58,193.52,7.59522933]
[1761798128275,7.59522933,193.58,193.52,8.28522933]
[1761798128473,7.59522933,193.57,193.52,0.69]
[1761798128674,7.59522933,193.57,193.52,7.59522933]
[1761798128882,7.59522933,193.58,193.53,0.69]
[1761798129404,7.59522933,193.61,193.55,7.59522933]
[1761798129605,7.59522933,193.62,193.56,8.28522933]
[1761798129903,7.59522933,193.57,193.49,0.51682257]
[1761798130105,7.59522933,193.54,193.48,8.28522933]
[1761798130293,7.59522933,193.49,193.42,0.69]
[1761798130484,7.59522933,193.47,193.42,0.69]
[1761798130683,7.7373909,193.47,193.42,0.69]
[1761798131213,8.4573909,193.47,193.36,8.28522933]
[1761798131503,118.24621859,193.47,193.36,0.69]
[1761798131880,123.4149786,193.47,193.36,0.69]
[1761798132212,50.0,193.43,193.36,0.69]
[1761798132382,7.59522933,193.37,193.33,0.69]
[1761798132584,7.59522933,193.36,193.3,7.59522933]
[1761798132782,7.59522933,193.36,193.31,0.69]
[1761798132996,7.59522933,193.37,193.31,8.28522933]
[1761798133308,7.59522933,193.35,193.31,0.69]
[1761798133492,0.14216157,193.4,193.31,0.69]
[1761798133493,7.59522933,193.34,193.31,0.69]
[1761798133691,0.14216157,193.37,193.31,0.69]
[1761798133907,7.59522933,193.36,193.31,0.69]
[1761798134232,0.14216157,193.37,193.31,0.69]
[1761798134514,0.14216157,193.42,193.34,7.59522933]
[1761798134708,0.14216157,193.39,193.34,7.59522933]
[1761798134913,7.7373909,193.39,193.34,7.59522933]
[1761798135203,7.7373909,193.39,193.35,0.72]
[1761798135524,7.59522933,193.41,193.35,0.72]
[1761798135711,50.67,193.46,193.37,7.59522933]
[1761798135712,0.67,193.46,193.37,7.59522933]
[1761798135916,7.59522933,193.4,193.35,0.72]
[1761798136203,7.59522933,193.39,193.35,0.72]
[1761798136413,0.14216157,193.42,193.35,0.72]
[1761798136735,7.59522933,193.4,193.35,0.72]
[1761798136882,7.59522933,193.36,193.31,8.31522933]
[1761798137280,5.14508732,193.37,193.32,0.72]
[1761798137484,10.45882769,193.48,193.36,5.14508732]
[1761798137686,5.14508732,193.43,193.38,5.14508732]
[1761798138012,5.14508732,193.45,193.39,5.86508732]
[1761798138214,100.0,193.51,193.4,5.14508732]
[1761798138215,5.14508732,193.46,193.4,5.14508732]
[1761798138420,50.67,193.51,193.41,5.14508732]
[1761798138421,5.14508732,193.47,193.41,5.14508732]
[1761798138719,5.14508732,193.42,193.35,0.72]
[1761798138934,5.14508732,193.43,193.37,5.14508732]
[1761798139112,0.14216157,193.47,193.39,5.14508732]
[1761798139321,5.14508732,193.46,193.4,5.86508732]
[1761798140115,5.14508732,193.52,193.45,5.14508732]
[1761798140309,50.0,193.57,193.48,5.14508732]
[1761798140511,5.14508732,193.57,193.44,5.14508732]
[1761798140813,5.14508732,193.49,193.43,5.14508732]
[1761798141014,9.78882769,193.5,193.39,5.14508732]
[1761798141324,5.14508732,193.42,193.36,0.72]
[1761798141527,5.14508732,193.41,193.36,0.72]
[1761798141842,0.14216157,193.43,193.36,5.86508732]
[1761798142014,5.28724889,193.43,193.36,5.86508732]
[1761798142212,5.14508732,193.45,193.39,5.14508732]
[1761798142407,0.14216157,193.44,193.39,5.14508732]
[1761798142623,0.14216157,193.44,193.36,5.14508732]
[1761798142939,0.14216157,193.44,193.34,0.67]
[1761798142940,5.14508732,193.38,193.34,0.67]
[1761798143119,5.28724889,193.37,193.31,5.81508732]
[1761798143429,0.14216157,193.37,193.32,5.14508732]
[1761798143638,9.93098926,193.44,193.34,5.14508732]
[1761798143853,0.14216157,193.39,193.34,5.14508732]
[1761798144037,5.14508732,193.4,193.34,0.67]
[1761798144219,9.78882769,193.47,193.37,5.14508732]
[1761798144414,5.14508732,193.43,193.38,5.14508732]
[1761798144611,5.14508732,193.43,193.37,5.81508732]
[1761798144820,0.14216157,193.42,193.37,5.81508732]
[1761798145036,0.14216157,193.4,193.35,5.14508732]
[1761798145224,0.14216157,193.38,193.33,5.81508732]
[1761798145953,100.0,193.48,193.34,0.67]
[1761798146156,5.14508732,193.43,193.37,5.14508732]
[1761798146354,0.14216157,193.37,193.31,0.67]
[1761798146658,5.28724889,193.37,193.31,5.81508732]
[1761798146840,0.72,193.41,193.32,5.14508732]
[1761798147028,0.14216157,193.39,193.34,5.14508732]
[1761798147430,9.78882769,193.46,193.37,5.14508732]
[1761798147660,5.14508732,193.41,193.3,21.10933057]
[1761798147841,70.592,193.49,193.38,5.14508732]
[1761798148032,5.14508732,193.47,193.4,5.14508732]
[1761798148232,5.14508732,193.48,193.41,5.14508732]
[1761798148434,5.14508732,193.48,193.42,5.14508732]
[1761798148650,5.14508732,193.47,193.41,5.81508732]
[1761798148847,50.0,193.55,193.44,5.14508732]
[1761798149077,50.72,193.61,193.52,5.14508732]
[1761798149237,5.14508732,193.57,193.47,0.14216157]
[1761798149432,5.14508732,193.51,193.45,0.67]
[1761798149654,5.14508732,193.49,193.42,0.67]
[1761798149831,5.14508732,193.48,193.42,5.81508732]
[1761798150041,5.28724889,193.5,193.44,5.14508732]
[1761798150369,5.28724889,193.5,193.45,0.67]
[1761798150866,5.28724889,193.5,193.44,5.14508732]
[1761798151373,5.14508732,193.49,193.44,0.67]
[1761798151540,5.28724889,193.5,193.44,5.81508732]
[1761798151738,5.14508732,193.47,193.41,5.81508732]
[1761798151948,5.14508732,193.48,193.41,5.81508732]
[1761798152159,5.14508732,193.48,193.39,25.76274042]
[1761798152160,5.28724889,193.49,193.43,5.14508732]
[1761798152450,5.14508732,193.48,193.42,5.81508732]
[1761798152642,0.14216157,193.45,193.4,5.14508732]
[1761798152958,0.14216157,193.46,193.4,5.14508732]
[1761798153155,0.14216157,193.47,193.41,5.81508732]
[1761798153659,0.14216157,193.47,193.39,5.14508732]
[1761798153660,5.14508732,193.45,193.39,5.14508732]
[1761798153866,0.14216157,193.47,193.41,5.14508732]
[1761798154075,0.14216157,193.47,193.42,5.14508732]
[1761798154244,5.14508732,193.51,193.44,5.14508732]
[1761798154438,5.14508732,193.5,193.43,5.81508732]
[1761798155034,50.72,193.52,193.43,0.67]
[1761798155257,5.14508732,193.49,193.43,0.67]
[1761798155562,0.14216157,193.48,193.43,0.67]
[1761798155762,5.28724889,193.48,193.43,0.67]
[1761798156164,50.72,193.59,193.47,5.14508732]
[1761798156463,5.14508732,193.5,193.44,5.14508732]
[1761798156657,5.14508732,193.5,193.44,0.67]
[1761798156858,5.14508732,193.49,193.44,0.67]
[1761798157559,5.28724889,193.47,193.4,5.81508732]
[1761798157861,5.14508732,193.46,193.41,0.67]
[1761798158164,5.14508732,193.48,193.41,5.81508732]
[1761798158343,0.14216157,193.48,193.43,5.14508732]
[1761798158855,5.28724889,193.48,193.43,0.67]
[1761798159039,5.28724889,193.44,193.38,0.67]
[1761798159260,5.14508732,193.43,193.38,0.67]
[1761798159441,0.14216157,193.44,193.35,5.14508732]
[1761798159759,5.28724889,193.44,193.39,0.67]
[1761798159966,5.14508732,193.43,193.39,0.67]
[1761798160146,5.14508732,193.42,193.36,5.81508732]
[1761798160667,5.14508732,193.41,193.36,0.67]
[1761798161039,5.14508732,193.38,193.33,0.67]
[1761798161245,5.14508732,193.37,193.31,5.14508732]
[1761798161470,5.14508732,193.37,193.31,5.81508732]
[1761798161670,5.14508732,193.38,193.31,5.14508732]
[1761798161971,5.14508732,193.37,193.32,0.67]
[1761798162463,5.14508732,193.39,193.32,5.81508732]
[1761798162865,0.72,193.45,193.33,0.67]
[1761798163065,5.14508732,193.42,193.33,5.84234659]
[1761798163244,5.14508732,193.41,193.35,5.14508732]
[1761798163569,5.14508732,193.37,193.32,0.67]
[1761798163764,5.14508732,193.38,193.32,0.67]
[1761798165277,5.14508732,193.4,193.33,5.14508732]
[1761798165484,0.72,193.45,193.37,5.14508732]
[1761798165767,5.14508732,193.45,193.38,5.14508732]
[1761798165983,5.14508732,193.43,193.36,5.14508732]
[1761798166150,5.14508732,193.41,193.35,5.81508732]
[1761798166654,5.14508732,193.46,193.39,5.14508732]
[1761798166862,5.14508732,193.47,193.41,5.14508732]
[1761798167256,5.14508732,193.48,193.41,0.67]
[1761798167457,5.14508732,193.42,193.33,0.67]
[1761798167670,5.14508732,193.39,193.33,0.67]
[1761798167857,50.14216157,193.43,193.33,0.67]
[1761798167858,5.14508732,193.38,193.33,0.67]
[1761798168771,5.14508732,193.37,193.33,0.67]
[1761798168955,5.14508732,193.36,193.3,0.67]
[1761798169566,5.14508732,193.34,193.27,20.592]
[1761798169749,5.14508732,193.33,193.28,0.67]
[1761798169951,0.14216157,193.36,193.28,0.67]
[1761798170150,5.14508732,193.33,193.28,0.67]
[1761798170351,9.93098926,193.36,193.28,0.67]
[1761798170774,5.14508732,193.33,193.28,0.67]
[1761798171082,5.14508732,193.29,193.26,6.85152801]
[1761798171263,5.28724889,193.27,193.26,6.85152801]
[1761798171883,6.00724889,193.27,193.26,6.85152801]
[1761798172178,5.28724889,193.27,193.26,6.85152801]
[1761798172479,6.00724889,193.27,193.26,6.85152801]
[1761798172648,0.14216157,193.27,193.26,6.85152801]
[1761798172856,5.28724889,193.27,193.26,6.85152801]
[1761798173383,5.14508732,193.27,193.26,6.85152801]
[1761798173584,5.14508732,193.29,193.26,6.85152801]
[1761798173966,5.14508732,193.3,193.26,6.85152801]
[1761798174279,59.78882769,193.33,193.27,0.69]
[1761798174280,5.14508732,193.33,193.27,0.69]
[1761798174466,5.14508732,193.31,193.26,6.85152801]
[1761798174780,5.14508732,193.33,193.26,12.68661533]
[1761798175255,5.14508732,193.32,193.26,6.85152801]
[1761798175453,0.14216157,193.34,193.27,5.83508732]
[1761798175680,50.0,193.4,193.32,5.14508732]
[1761798175985,5.14508732,193.4,193.34,5.14508732]
[1761798176197,5.14508732,193.41,193.3,0.51733057]
[1761798176380,5.14508732,193.42,193.35,5.14508732]
[1761798176778,5.14508732,193.42,193.35,5.83508732]
[1761798177154,5.14508732,193.41,193.35,0.69]
[1761798177491,5.14508732,193.41,193.34,0.69]
[1761798177787,5.14508732,193.36,193.3,0.69]
[1761798177962,5.14508732,193.37,193.3,5.83508732]
[1761798178162,5.14508732,193.37,193.31,5.14508732]
[1761798178382,5.14508732,193.37,193.3,0.69]
[1761798178383,5.14508732,193.37,193.3,5.83508732]
[1761798178593,10.46882769,193.44,193.33,20.592]
[1761798178768,5.14508732,193.4,193.33,20.592]
[1761798178958,0.68,193.43,193.34,5.14508732]
[1761798179166,5.14508732,193.41,193.34,5.83508732]
[1761798179370,100.0,193.45,193.36,5.14508732]
[1761798179565,5.14508732,193.43,193.36,5.14508732]
[1761798180089,5.14508732,193.42,193.35,0.69]
[1761798180288,5.14508732,193.37,193.32,0.69]
[1761798180490,5.14508732,193.35,193.29,5.14508732]